Workbook

Sheet Home screen
G2: UF Hay Balancer
E4: Orange cells are input cells: enter your information here. These are the only cells that can be modified.
A7: INPUT
A8: Type of animal | E8: 1 | F8: 1 = cow, 2 = growing heifer, 3 = bull | R8: adjusted month of lactation | W8: intake level
A9: Months of lactation (enter 0 for dry cows) | E9: 5 | R9: =IF(E9>12,0,E9) -> 5 | W9: 1.7 | X9: lactating
A10: Type of breed | E10: 1 | F10: 1 = For british breeds (Angus, Hereford, etc), 2 = Brangus or Braford, 3 = Brahman or Nellore | R10: rounded BW (hide later) | W10: 1.4 | X10: dry
A11: Average body weight (BW) in lbs | E11: 1200 | R11: =IF(E11<1000,1000,IF(E11>1600,1600,MROUND(E11,100))) -> 1200
A12: Number of animals | E12: 1
A13: Number of days to supplement | E13: 90 | R13: no waste (0%)
R14: low (10%)
A15: Type of hay | C15: 1 | D15: 1 = Bahiagrass, 2 = Tifton 85 bermudagrass, 3 = Coastal bermuda, 4 = other | R15: moderate (30%)
A16: Estimated hay cost ($ per ton as fed) | E16: 100 | R16: high (50%)
A17: Average bale weight (lbs as is) | E17: 900
A18: Hay DM % (use 90 as default if unknown) | E18: 90 | F18: %
A19: TDN in hay (%, DM) | E19: 55
A20: Crude Protein (CP) in hay (%, DM) | E20: 10 | O20: hay waste factor check cell (hide later)
A21: Estimated hay feeding waste | E21: 2 | O21: =E22 -> 0.1
E22: =IF(E21=1,0,IF(E21=2,0.1,IF(E21=3,0.3,IF(E21=4,0.5)))) -> 0.1
A23: OUTPUT
A24: Daily TDN requirements (lbs/hd/d) | E24: =IF(R11=1000,VLOOKUP(R9,Cow_req!M2:O14,2),IF(R11=1100,VLOOKUP(R9,Cow_req!S2:U14,2),IF(R11=1200,VLOOKUP(R9,Cow_req!Y2:AA14,2),IF(R11=1300,VLOOKUP(R9,Cow_req!AE2:AG14,2),IF(R11=1400,VLOOKUP(R9,Cow_req!AK2:AM14,2),IF(R11=1500,VLOOKUP(R9,Cow_req!AQ2:AS14,2),IF(R11=1600,VLOOKUP(R9,Cow_req!AW2:AY14,2),"cow weight is out of the normal range"))))))) -> 13.08
A25: Daily CP requirements (lbs/hd/d) | E25: =IF(R11=1000,VLOOKUP(R9,Cow_req!M2:O14,3),IF(R11=1100,VLOOKUP(R9,Cow_req!S2:U14,3),IF(R11=1200,VLOOKUP(R9,Cow_req!Y2:AA14,3),IF(R11=1300,VLOOKUP(R9,Cow_req!AE2:AG14,3),IF(R11=1400,VLOOKUP(R9,Cow_req!AK2:AM14,3),IF(R11=1500,VLOOKUP(R9,Cow_req!AQ2:AS14,3),IF(R11=1600,VLOOKUP(R9,Cow_req!AW2:AY14,3),"cow weight is out of the normal"))))))) -> 1.84
A27: Hay dry matter intake (lbs/hd/day) | E27: =IF(R9=0,E11*W10/100,IF(R9>=7,E11*W10/100,E11*W9/100)) -> 20.4 | G27: Shortage/surplus of TDN from hay (lbs/hd/d) = | M27: =E28-E24 -> -1.86 | N27: =IF(M27>=0,S27,"") ->  | O27: =IF(M27<0,T27,"") -> Need more TDN | S27: P | T27: Need more TDN
A28: Daily TDN intake from hay (lbs/hd/d) | E28: =E27*E19/100 -> 11.22 | G28: Shortage/surplus of CP from hay (lbs/hd/d) = | M28: =E29-E25 -> 0.2 | N28: =IF(M28>=0,S28,"") -> P | O28: =IF(M28<0,T28,"") ->  | S28: P | T28: Need more protein
A29: Daily CP intake from hay (lbs/hd/d) | E29: =E27*E20/100 -> 2.04
A32: Total amount of hay needed (in lbs as is) not accounting for waste | H32: =E12*E13*(E27/(E18/100)) -> 2040 | I32: (for the entire feeding season)
A33: Total amount of hay needed (in lbs as is) accounting for waste | H33: =H32+H32*E22 -> 2244
A34: Total hay bales needed accounting for waste | H34: =H33/E17 -> 2.493333333 | I34: (for the entire feeding season)

Sheet Summary
D2: UF Hay Balancer
D4: Summary of diet balance and costs
A6: Shortage/surplus of TDN from hay (lbs/hd/d) = | D6: ='Home screen'!M27 -> -1.86 | F6: Feed # lookup
A7: Shortage/surplus of CP from hay (lbs/hd/d) = | D7: ='Home screen'!M28 -> 0.2 | F7: Feed number = | G7: 2
F8: Feed name = | G8: =VLOOKUP(G7,Feeds!A6:F205,2,FALSE) -> Corn gluten feed, pellets
A9: Feed number | B9: Feed name | C9: Lb/cow/day to feed (as fed) | D9: TDN supplied (lb/cow/d) | E9: CP supplied (lb/cow/d) | F9: Daily cost ($/hd/d) | G9: Total feed needed (lbs) | I9: For a total of: | J9: ='Home screen'!E13 -> 90 | K9: day(s)
A10: 0 | B10: Free choice hay intake | C10: ='Home screen'!E27/('Home screen'!E18/100) -> 22.66666667 | D10: ='Home screen'!E28 -> 11.22 | E10: ='Home screen'!E29 -> 2.04 | F10: =C10*('Home screen'!E16/2000) -> 1.133333333 | J10: ='Home screen'!E12 -> 1 | K10: cow(s)
A11: 2 | B11: =IF(A11="","",VLOOKUP(A11,Feeds!$A$6:$F$205,2,FALSE)) -> Corn gluten feed, pellets | C11: 0 | D11: =IF(A11="","",VLOOKUP(A11,Feeds!$A$6:$F$205,4,FALSE)/100*C11*(VLOOKUP(A11,Feeds!$A$6:$F$205,3,FALSE)/100)) -> 0 | E11: =IF(A11="","",VLOOKUP(A11,Feeds!$A$6:$F$205,5,FALSE)/100*C11*(VLOOKUP(A11,Feeds!$A$6:$F$205,3,FALSE)/100)) -> 0 | F11: =IF(A11="","",VLOOKUP(A11,Feeds!$A$6:$F$205,6,FALSE)/2000*C11) -> 0 | G11: =IF(A11="","",C11*$J$9*$J$10) -> 0
A12: 3 | B12: =IF(A12="","",VLOOKUP(A12,Feeds!$A$6:$F$205,2,FALSE)) -> Soybean hulls, pellets | C12: 3 | D12: =IF(A12="","",VLOOKUP(A12,Feeds!$A$6:$F$205,4,FALSE)/100*C12*(VLOOKUP(A12,Feeds!$A$6:$F$205,3,FALSE)/100)) -> 1.6092 | E12: =IF(A12="","",VLOOKUP(A12,Feeds!$A$6:$F$205,5,FALSE)/100*C12*(VLOOKUP(A12,Feeds!$A$6:$F$205,3,FALSE)/100)) -> 0.311112 | F12: =IF(A12="","",VLOOKUP(A12,Feeds!$A$6:$F$205,6,FALSE)/2000*C12) -> 0.3 | G12: =IF(A12="","",C12*$J$9*$J$10) -> 270 | I12: Average cow weight:
B13: =IF(A13="","",VLOOKUP(A13,Feeds!$A$6:$F$205,2,FALSE)) ->  | D13: =IF(A13="","",VLOOKUP(A13,Feeds!$A$6:$F$205,4,FALSE)/100*C13*(VLOOKUP(A13,Feeds!$A$6:$F$205,3,FALSE)/100)) ->  | E13: =IF(A13="","",VLOOKUP(A13,Feeds!$A$6:$F$205,5,FALSE)/100*C13*(VLOOKUP(A13,Feeds!$A$6:$F$205,3,FALSE)/100)) ->  | F13: =IF(A13="","",VLOOKUP(A13,Feeds!$A$6:$F$205,6,FALSE)/2000*C13) ->  | G13: =IF(A13="","",C13*$J$9*$J$10) ->  | I13: ='Home screen'!E11 -> 1200 | J13: lbs
B14: =IF(A14="","",VLOOKUP(A14,Feeds!$A$6:$F$205,2,FALSE)) ->  | D14: =IF(A14="","",VLOOKUP(A14,Feeds!$A$6:$F$205,4,FALSE)/100*C14*(VLOOKUP(A14,Feeds!$A$6:$F$205,3,FALSE)/100)) ->  | E14: =IF(A14="","",VLOOKUP(A14,Feeds!$A$6:$F$205,5,FALSE)/100*C14*(VLOOKUP(A14,Feeds!$A$6:$F$205,3,FALSE)/100)) ->  | F14: =IF(A14="","",VLOOKUP(A14,Feeds!$A$6:$F$205,6,FALSE)/2000*C14) ->  | G14: =IF(A14="","",C14*$J$9*$J$10) -> 
B15: =IF(A15="","",VLOOKUP(A15,Feeds!$A$6:$F$205,2,FALSE)) ->  | D15: =IF(A15="","",VLOOKUP(A15,Feeds!$A$6:$F$205,4,FALSE)/100*C15*(VLOOKUP(A15,Feeds!$A$6:$F$205,3,FALSE)/100)) ->  | E15: =IF(A15="","",VLOOKUP(A15,Feeds!$A$6:$F$205,5,FALSE)/100*C15*(VLOOKUP(A15,Feeds!$A$6:$F$205,3,FALSE)/100)) ->  | F15: =IF(A15="","",VLOOKUP(A15,Feeds!$A$6:$F$205,6,FALSE)/2000*C15) ->  | I15: Type of hay fed:
B16: =IF(A16="","",VLOOKUP(A16,Feeds!$A$6:$F$205,2,FALSE)) ->  | D16: =IF(A16="","",VLOOKUP(A16,Feeds!$A$6:$F$205,4,FALSE)/100*C16*(VLOOKUP(A16,Feeds!$A$6:$F$205,3,FALSE)/100)) ->  | E16: =IF(A16="","",VLOOKUP(A16,Feeds!$A$6:$F$205,5,FALSE)/100*C16*(VLOOKUP(A16,Feeds!$A$6:$F$205,3,FALSE)/100)) ->  | F16: =IF(A16="","",VLOOKUP(A16,Feeds!$A$6:$F$205,6,FALSE)/2000*C16) ->  | I16: =IF('Home screen'!C15=1, "Bahiagrass",IF('Home screen'!C15=2, "Tifton 85 bermudagrass", IF('Home screen'!C15=3, "Coastal bermuda", "other"))) -> Bahiagrass
B17: =IF(A17="","",VLOOKUP(A17,Feeds!$A$6:$F$205,2,FALSE)) ->  | D17: =IF(A17="","",VLOOKUP(A17,Feeds!$A$6:$F$205,4,FALSE)/100*C17*(VLOOKUP(A17,Feeds!$A$6:$F$205,3,FALSE)/100)) ->  | E17: =IF(A17="","",VLOOKUP(A17,Feeds!$A$6:$F$205,5,FALSE)/100*C17*(VLOOKUP(A17,Feeds!$A$6:$F$205,3,FALSE)/100)) ->  | F17: =IF(A17="","",VLOOKUP(A17,Feeds!$A$6:$F$205,6,FALSE)/2000*C17) ->  | I17: ='Home screen'!E19 -> 55 | J17: % TDN
B18: =IF(A18="","",VLOOKUP(A18,Feeds!$A$6:$F$205,2,FALSE)) ->  | D18: =IF(A18="","",VLOOKUP(A18,Feeds!$A$6:$F$205,4,FALSE)/100*C18*(VLOOKUP(A18,Feeds!$A$6:$F$205,3,FALSE)/100)) ->  | E18: =IF(A18="","",VLOOKUP(A18,Feeds!$A$6:$F$205,5,FALSE)/100*C18*(VLOOKUP(A18,Feeds!$A$6:$F$205,3,FALSE)/100)) ->  | F18: =IF(A18="","",VLOOKUP(A18,Feeds!$A$6:$F$205,6,FALSE)/2000*C18) ->  | I18: ='Home screen'!E20 -> 10 | J18: % CP
B19: Toal supplemental feed = | C19: =SUM(C11:C18) -> 3 | D19: lb/cow/d
A21: Shortage/surplus of TDN in balanced diet (lbs/hd/d) = | E21: =D6+SUM(D11:D18) -> -0.2508 | F21: =IF(E21>=0,K21,"") ->  | G21: =IF(E21<0,L21,"") -> Need more TDN | K21: P | L21: Need more TDN
A22: Shortage/surplus of CP in balanced diet (lbs/hd/d) = | E22: =D7+SUM(E11:E18) -> 0.511112 | F22: =IF(E22>=0,K22,"") -> P | G22: =IF(E22<0,L22,"") ->  | K22: P | L22: Need more protein
A24: Total daily feed cost (supplement only) = | F24: =SUM(F11:F18) -> 0.3 | G24: $ per cow/day
A26: Total daily feed cost (hay plus supplement) = | F26: =SUM(F10:F18) -> 1.433333333 | G26: $ per cow/day
A28: Disclaimer: Balancing calculations do not take into account any changes in hay intake as a result of supplementation.
B29: Questions or feedback: | C29: ndilorenzo@ufl.edu

Sheet Feeds
B4: Feeds library
A5: Feed number | B5: Feed name | C5: DM, % | D5: TDN, % DM basis | E5: CP, % DM basis | F5: Cost ($ per ton as is)
A6: 1 | B6: Perennial peanut hay | C6: 88 | D6: 61 | E6: 14.7 | F6: 280
A7: 2 | B7: Corn gluten feed, pellets | C7: 87.2 | D7: 74 | E7: 18 | F7: 180
A8: 3 | B8: Soybean hulls, pellets | C8: 89.4 | D8: 60 | E8: 11.6 | F8: 200
A9: 4 | B9: Molasses, cane | C9: 78.2 | D9: 78 | E9: 8.2 | F9: 120
A10: 5 | B10: Citrus pulp, pellets | C10: 90 | D10: 78 | E10: 6.5 | F10: 265
A11: 6 | B11: Peanut hay | C11: 90 | D11: 52 | E11: 10 | F11: 100
A12: 7 | B12: Cracked corn | C12: 88 | D12: 88 | E12: 9 | F12: 199
A13: 8 | B13: Carinata meal, pellets | C13: 89.8 | D13: 80 | E13: 43.3 | F13: 300
A14: 9 | B14: Fiber pellets, AFG Feeds | C14: 90 | D14: 50 | E14: 10 | F14: 100
A15: 10 | B15: Urea | C15: 99 | D15: 0 | E15: 288 | F15: 250
A16: 11 | B16: Dry Distillers grains plus solubles (DDGS) | C16: 86.3 | D16: 83 | E16: 32.8 | F16: 190
A17: 12 | B17: Cottonseed meal | C17: 88.9 | D17: 67 | E17: 49.2 | F17: 359
A18: 13 | B18: Whole cottonseed | C18: 90 | D18: 90 | E18: 28 | F18: 237
A19: 14 | B19: Soybean meal | C19: 90.7 | D19: 84 | E19: 49 | F19: 385
A20: 15 | B20: Ryegrass baleage | C20: 51.2 | D20: 69.1 | E20: 11.9 | F20: 65
A21: 16 | B21: Cotton gin trash | C21: 92 | D21: 40 | E21: =12.2-6.5 -> 5.7 | F21: 30
A22: 17 | B22: Canola meal | C22: 90 | D22: 71 | E22: 41 | F22: 280
A23: 18 | B23: BLANK
A24: 19 | B24: BLANK
A25: 20 | B25: BLANK
A26: 21 | B26: BLANK
A27: 22 | B27: BLANK
A28: 23 | B28: BLANK
A29: 24 | B29: BLANK
A30: 25 | B30: BLANK
A31: 26 | B31: BLANK
A32: 27 | B32: BLANK
A33: 28 | B33: BLANK
A34: 29 | B34: BLANK
A35: 30 | B35: BLANK
A36: 31 | B36: BLANK
A37: 32 | B37: BLANK
A38: 33 | B38: BLANK
A39: 34 | B39: BLANK
A40: 35 | B40: BLANK
A41: 36 | B41: BLANK
A42: 37 | B42: BLANK
A43: 38 | B43: BLANK
A44: 39 | B44: BLANK
A45: 40 | B45: BLANK
A46: 41 | B46: BLANK
A47: 42 | B47: BLANK
A48: 43 | B48: BLANK
A49: 44 | B49: BLANK
A50: 45 | B50: BLANK
A51: 46 | B51: BLANK
A52: 47 | B52: BLANK
A53: 48 | B53: BLANK
A54: 49 | B54: BLANK
A55: 50 | B55: BLANK
A56: 51 | B56: BLANK
A57: 52 | B57: BLANK
A58: 53 | B58: BLANK
A59: 54 | B59: BLANK
A60: 55 | B60: BLANK
A61: 56 | B61: BLANK
A62: 57 | B62: BLANK
A63: 58 | B63: BLANK
A64: 59 | B64: BLANK
A65: 60 | B65: BLANK
A66: 61 | B66: BLANK
A67: 62 | B67: BLANK
A68: 63 | B68: BLANK
A69: 64 | B69: BLANK
A70: 65 | B70: BLANK
A71: 66 | B71: BLANK
A72: 67 | B72: BLANK
A73: 68 | B73: BLANK
A74: 69 | B74: BLANK
A75: 70 | B75: BLANK
A76: 71 | B76: BLANK
A77: 72 | B77: BLANK
A78: 73 | B78: BLANK
A79: 74 | B79: BLANK
A80: 75 | B80: BLANK
A81: 76 | B81: BLANK
A82: 77 | B82: BLANK
A83: 78 | B83: BLANK
A84: 79 | B84: BLANK
A85: 80 | B85: BLANK
A86: 81 | B86: BLANK
A87: 82 | B87: BLANK
A88: 83 | B88: BLANK
A89: 84 | B89: BLANK
A90: 85 | B90: BLANK
A91: 86 | B91: BLANK
A92: 87 | B92: BLANK
A93: 88 | B93: BLANK
A94: 89 | B94: BLANK
A95: 90 | B95: BLANK
A96: 91 | B96: BLANK
A97: 92 | B97: BLANK
A98: 93 | B98: BLANK
A99: 94 | B99: BLANK
A100: 95 | B100: BLANK
A101: 96 | B101: BLANK
A102: 97 | B102: BLANK
A103: 98 | B103: BLANK
A104: 99 | B104: BLANK
A105: 100 | B105: BLANK
A106: 101 | B106: BLANK
A107: 102 | B107: BLANK
A108: 103 | B108: BLANK
A109: 104 | B109: BLANK
A110: 105 | B110: BLANK
A111: 106 | B111: BLANK
A112: 107 | B112: BLANK
A113: 108 | B113: BLANK
A114: 109 | B114: BLANK
A115: 110 | B115: BLANK
A116: 111 | B116: BLANK
A117: 112 | B117: BLANK
A118: 113 | B118: BLANK
A119: 114 | B119: BLANK
A120: 115 | B120: BLANK
A121: 116 | B121: BLANK
A122: 117 | B122: BLANK
A123: 118 | B123: BLANK
A124: 119 | B124: BLANK
A125: 120 | B125: BLANK
A126: 121 | B126: BLANK
A127: 122 | B127: BLANK
A128: 123 | B128: BLANK
A129: 124 | B129: BLANK
A130: 125 | B130: BLANK
A131: 126 | B131: BLANK
A132: 127 | B132: BLANK
A133: 128 | B133: BLANK
A134: 129 | B134: BLANK
A135: 130 | B135: BLANK
A136: 131 | B136: BLANK
A137: 132 | B137: BLANK
A138: 133 | B138: BLANK
A139: 134 | B139: BLANK
A140: 135 | B140: BLANK
A141: 136 | B141: BLANK
A142: 137 | B142: BLANK
A143: 138 | B143: BLANK
A144: 139 | B144: BLANK
A145: 140 | B145: BLANK
A146: 141 | B146: BLANK
A147: 142 | B147: BLANK
A148: 143 | B148: BLANK
A149: 144 | B149: BLANK
A150: 145 | B150: BLANK
A151: 146 | B151: BLANK
A152: 147 | B152: BLANK
A153: 148 | B153: BLANK
A154: 149 | B154: BLANK
A155: 150 | B155: BLANK
A156: 151 | B156: BLANK
A157: 152 | B157: BLANK
A158: 153 | B158: BLANK
A159: 154 | B159: BLANK
A160: 155 | B160: BLANK
A161: 156 | B161: BLANK
A162: 157 | B162: BLANK
A163: 158 | B163: BLANK
A164: 159 | B164: BLANK
A165: 160 | B165: BLANK
A166: 161 | B166: BLANK
A167: 162 | B167: BLANK
A168: 163 | B168: BLANK
A169: 164 | B169: BLANK
A170: 165 | B170: BLANK
A171: 166 | B171: BLANK
A172: 167 | B172: BLANK
A173: 168 | B173: BLANK
A174: 169 | B174: BLANK
A175: 170 | B175: BLANK
A176: 171 | B176: BLANK
A177: 172 | B177: BLANK
A178: 173 | B178: BLANK
A179: 174 | B179: BLANK
A180: 175 | B180: BLANK
A181: 176 | B181: BLANK
A182: 177 | B182: BLANK
A183: 178 | B183: BLANK
A184: 179 | B184: BLANK
A185: 180 | B185: BLANK
A186: 181 | B186: BLANK
A187: 182 | B187: BLANK
A188: 183 | B188: BLANK
A189: 184 | B189: BLANK
A190: 185 | B190: BLANK
A191: 186 | B191: BLANK
A192: 187 | B192: BLANK
A193: 188 | B193: BLANK
A194: 189 | B194: BLANK
A195: 190 | B195: BLANK
A196: 191 | B196: BLANK
A197: 192 | B197: BLANK
A198: 193 | B198: BLANK
A199: 194 | B199: BLANK
A200: 195 | B200: BLANK
A201: 196 | B201: BLANK
A202: 197 | B202: BLANK
A203: 198 | B203: BLANK
... 2 more rows

Sheet calculations
D2: 1000 | E2: 1200 | F2: 1400
D3: 1.8 | E3: 1.8 | F3: 1.8
C4: hay DMI | D4: =D3*D2/100 -> 18 | E4: =E3*E2/100 -> 21.6 | F4: 25.2
C5: CP | D5: 0.07 | E5: 0.07 | F5: 0.07
C6: TDN | D6: 0.52 | E6: 0.52 | F6: 0.52
C7: CP supplied | D7: =D4*D5 -> 1.26 | E7: =E4*E5 -> 1.512 | F7: 1.764
C8: TDN supplied | D8: =D4*D6 -> 9.36 | E8: =E4*E6 -> 11.232 | F8: 13.104
H9: CP req. | I9: TDN req.
H10: 0.45 | I10: 2.41
F11: CP | G11: TDN | H11: CP suppl | I11: TDN suppl
D12: 2.118055556 | E12: 3 | F12: 17.5 | G12: 78.5 | H12: =E12*F12/100 -> 0.525 | I12: =E12*G12/100 -> 2.355
D13: DDGS | E13: 3 | F13: 29 | G13: 98 | H13: =E13*F13/100 -> 0.87 | I13: =E13*G13/100 -> 2.94
D14: A | E14: 4 | F14: 10.9 | G14: 67 | H14: 0.436 | I14: 2.68
D15: B | E15: 4 | F15: 12.5 | G15: 70 | H15: 0.5 | I15: 2.8
D16: C | E16: 3 | F16: 21.9 | G16: 73 | H16: 0.657 | I16: 2.19

Sheet Cow_req
A1: Mature cow BW | B1: Milk production at peak (lbs) | C1: Months since calving | D1: TDN required (lb/d) | E1: CP required (lb/d) | K1: Mature cow BW | L1: Milk production at peak (lbs) | M1: Month of lactation | N1: TDN required (lb/d) | O1: CP required (lb/d) | Q1: Mature cow BW | R1: Milk production at peak (lbs) | S1: Month of lactation | T1: TDN required (lb/d) | U1: CP required (lb/d) | W1: Mature cow BW | X1: Milk production at peak (lbs) | Y1: Month of lactation | Z1: TDN required (lb/d) | AA1: CP required (lb/d) | AC1: Mature cow BW | AD1: Milk production at peak (lbs) | AE1: Month of lactation | AF1: TDN required (lb/d) | AG1: CP required (lb/d) | AI1: Mature cow BW | AJ1: Milk production at peak (lbs) | AK1: Month of lactation | AL1: TDN required (lb/d) | AM1: CP required (lb/d) | AO1: Mature cow BW | AP1: Milk production at peak (lbs) | AQ1: Month of lactation | AR1: TDN required (lb/d) | AS1: CP required (lb/d) | AU1: Mature cow BW | AV1: Milk production at peak (lbs) | AW1: Months since calving | AX1: TDN required (lb/d) | AY1: CP required (lb/d)
A2: 1000 | B2: 10 | C2: 1 | D2: 12.05 | E2: 1.88 | K2: 1000 | L2: 10 | M2: 0 | N2: 9.47 | O2: 1.26 | Q2: 1100 | R2: 10 | S2: 0 | T2: 10.17 | U2: 1.355 | W2: 1200 | X2: 10 | Y2: 0 | Z2: 10.87 | AA2: 1.45 | AC2: 1300 | AD2: 10 | AE2: 0 | AF2: 11.555 | AG2: 1.54 | AI2: 1400 | AJ2: 10 | AK2: 0 | AL2: 12.24 | AM2: 1.63 | AO2: 1500 | AP2: 10 | AQ2: 0 | AR2: 12.915 | AS2: 1.725 | AU2: 1600 | AV2: 10 | AW2: 0 | AX2: 13.59 | AY2: 1.82
A3: 1000 | B3: 10 | C3: 2 | D3: 12.51 | E3: 2.01 | K3: 1000 | L3: 10 | M3: 1 | N3: 12.05 | O3: 1.88 | Q3: 1100 | R3: 10 | S3: 1 | T3: 12.77 | U3: 1.97 | W3: 1200 | X3: 10 | Y3: 1 | Z3: 13.49 | AA3: 2.06 | AC3: 1300 | AD3: 10 | AE3: 1 | AF3: 14.185 | AG3: 2.145 | AI3: 1400 | AJ3: 10 | AK3: 1 | AL3: 14.88 | AM3: 2.23 | AO3: 1500 | AP3: 10 | AQ3: 1 | AR3: 15.56 | AS3: 2.31 | AU3: 1600 | AV3: 10 | AW3: 1 | AX3: 16.24 | AY3: 2.39
A4: 1000 | B4: 10 | C4: 3 | D4: 12.49 | E4: 1.93 | K4: 1000 | L4: 10 | M4: 2 | N4: 12.51 | O4: 2.01 | Q4: 1100 | R4: 10 | S4: 2 | T4: 13.225 | U4: 2.1 | W4: 1200 | X4: 10 | Y4: 2 | Z4: 13.94 | AA4: 2.19 | AC4: 1300 | AD4: 10 | AE4: 2 | AF4: 14.63 | AG4: 2.275 | AI4: 1400 | AJ4: 10 | AK4: 2 | AL4: 15.32 | AM4: 2.36 | AO4: 1500 | AP4: 10 | AQ4: 2 | AR4: 15.995 | AS4: 2.44 | AU4: 1600 | AV4: 10 | AW4: 2 | AX4: 16.67 | AY4: 2.52
A5: 1000 | B5: 10 | C5: 4 | D5: 12.02 | E5: 1.79 | K5: 1000 | L5: 10 | M5: 3 | N5: 12.49 | O5: 1.93 | Q5: 1100 | R5: 10 | S5: 3 | T5: 13.225 | U5: 2.02 | W5: 1200 | X5: 10 | Y5: 3 | Z5: 13.96 | AA5: 2.11 | AC5: 1300 | AD5: 10 | AE5: 3 | AF5: 14.68 | AG5: 2.2 | AI5: 1400 | AJ5: 10 | AK5: 3 | AL5: 15.4 | AM5: 2.29 | AO5: 1500 | AP5: 10 | AQ5: 3 | AR5: 16.11 | AS5: 2.37 | AU5: 1600 | AV5: 10 | AW5: 3 | AX5: 16.82 | AY5: 2.45
A6: 1000 | B6: 10 | C6: 5 | D6: 11.6 | E6: 1.66 | K6: 1000 | L6: 10 | M6: 4 | N6: 12.02 | O6: 1.79 | Q6: 1100 | R6: 10 | S6: 4 | T6: 12.78 | U6: 1.885 | W6: 1200 | X6: 10 | Y6: 4 | Z6: 13.54 | AA6: 1.98 | AC6: 1300 | AD6: 10 | AE6: 4 | AF6: 14.25 | AG6: 2.065 | AI6: 1400 | AJ6: 10 | AK6: 4 | AL6: 14.96 | AM6: 2.15 | AO6: 1500 | AP6: 10 | AQ6: 4 | AR6: 15.66 | AS6: 2.22 | AU6: 1600 | AV6: 10 | AW6: 4 | AX6: 16.36 | AY6: 2.29
A7: 1000 | B7: 10 | C7: 6 | D7: 10.88 | E7: 1.5 | K7: 1000 | L7: 10 | M7: 5 | N7: 11.6 | O7: 1.66 | Q7: 1100 | R7: 10 | S7: 5 | T7: 12.34 | U7: 1.75 | W7: 1200 | X7: 10 | Y7: 5 | Z7: 13.08 | AA7: 1.84 | AC7: 1300 | AD7: 10 | AE7: 5 | AF7: 13.79 | AG7: 1.925 | AI7: 1400 | AJ7: 10 | AK7: 5 | AL7: 14.5 | AM7: 2.01 | AO7: 1500 | AP7: 10 | AQ7: 5 | AR7: 15.245 | AS7: 2.1 | AU7: 1600 | AV7: 10 | AW7: 5 | AX7: 15.99 | AY7: 2.19
A8: 1000 | B8: 10 | C8: 7 | D8: 9.47 | E8: 1.26 | K8: 1000 | L8: 10 | M8: 6 | N8: 10.88 | O8: 1.5 | Q8: 1100 | R8: 10 | S8: 6 | T8: 11.825 | U8: 1.62 | W8: 1200 | X8: 10 | Y8: 6 | Z8: 12.77 | AA8: 1.74 | AC8: 1300 | AD8: 10 | AE8: 6 | AF8: 13.475 | AG8: 1.825 | AI8: 1400 | AJ8: 10 | AK8: 6 | AL8: 14.18 | AM8: 1.91 | AO8: 1500 | AP8: 10 | AQ8: 6 | AR8: 14.895 | AS8: 1.995 | AU8: 1600 | AV8: 10 | AW8: 6 | AX8: 15.61 | AY8: 2.08
A9: 1000 | B9: 10 | C9: 8 | D9: 9.6 | E9: 1.29 | K9: 1000 | L9: 10 | M9: 7 | N9: 9.47 | O9: 1.26 | Q9: 1100 | R9: 10 | S9: 7 | T9: 10.17 | U9: 1.355 | W9: 1200 | X9: 10 | Y9: 7 | Z9: 10.87 | AA9: 1.45 | AC9: 1300 | AD9: 10 | AE9: 7 | AF9: 11.555 | AG9: 1.54 | AI9: 1400 | AJ9: 10 | AK9: 7 | AL9: 12.24 | AM9: 1.63 | AO9: 1500 | AP9: 10 | AQ9: 7 | AR9: 12.915 | AS9: 1.725 | AU9: 1600 | AV9: 10 | AW9: 7 | AX9: 13.59 | AY9: 1.82
A10: 1000 | B10: 10 | C10: 9 | D10: 9.82 | E10: 1.35 | K10: 1000 | L10: 10 | M10: 8 | N10: 9.6 | O10: 1.29 | Q10: 1100 | R10: 10 | S10: 8 | T10: 10.32 | U10: 1.39 | W10: 1200 | X10: 10 | Y10: 8 | Z10: 11.04 | AA10: 1.49 | AC10: 1300 | AD10: 10 | AE10: 8 | AF10: 11.705 | AG10: 1.58 | AI10: 1400 | AJ10: 10 | AK10: 8 | AL10: 12.37 | AM10: 1.67 | AO10: 1500 | AP10: 10 | AQ10: 8 | AR10: 13.055 | AS10: 1.77 | AU10: 1600 | AV10: 10 | AW10: 8 | AX10: 13.74 | AY10: 1.87
A11: 1000 | B11: 10 | C11: 10 | D11: 10.21 | E11: 1.45 | K11: 1000 | L11: 10 | M11: 9 | N11: 9.82 | O11: 1.35 | Q11: 1100 | R11: 10 | S11: 9 | T11: 10.56 | U11: 1.455 | W11: 1200 | X11: 10 | Y11: 9 | Z11: 11.3 | AA11: 1.56 | AC11: 1300 | AD11: 10 | AE11: 9 | AF11: 12.01 | AG11: 1.66 | AI11: 1400 | AJ11: 10 | AK11: 9 | AL11: 12.72 | AM11: 1.76 | AO11: 1500 | AP11: 10 | AQ11: 9 | AR11: 12.75 | AS11: 1.76 | AU11: 1600 | AV11: 10 | AW11: 9 | AX11: 12.78 | AY11: 1.76
A12: 1000 | B12: 10 | C12: 11 | D12: 10.92 | E12: 1.61 | K12: 1000 | L12: 10 | M12: 10 | N12: 10.21 | O12: 1.45 | Q12: 1100 | R12: 10 | S12: 10 | T12: 10.995 | U12: 1.56 | W12: 1200 | X12: 10 | Y12: 10 | Z12: 11.78 | AA12: 1.67 | AC12: 1300 | AD12: 10 | AE12: 10 | AF12: 12.525 | AG12: 1.78 | AI12: 1400 | AJ12: 10 | AK12: 10 | AL12: 13.27 | AM12: 1.89 | AO12: 1500 | AP12: 10 | AQ12: 10 | AR12: 14.015 | AS12: 2 | AU12: 1600 | AV12: 10 | AW12: 10 | AX12: 14.76 | AY12: 2.11
A13: 1000 | B13: 10 | C13: 12 | D13: 11.92 | E13: 1.86 | K13: 1000 | L13: 10 | M13: 11 | N13: 10.92 | O13: 1.61 | Q13: 1100 | R13: 10 | S13: 11 | T13: 11.055 | U13: 1.63 | W13: 1200 | X13: 10 | Y13: 11 | Z13: 11.19 | AA13: 1.65 | AC13: 1300 | AD13: 10 | AE13: 11 | AF13: 12.695 | AG13: 1.88 | AI13: 1400 | AJ13: 10 | AK13: 11 | AL13: 14.2 | AM13: 2.11 | AO13: 1500 | AP13: 10 | AQ13: 11 | AR13: 15.01 | AS13: 2.23 | AU13: 1600 | AV13: 10 | AW13: 11 | AX13: 15.82 | AY13: 2.35
A14: 1100 | B14: 10 | C14: 1 | D14: =AVERAGE(D2,D26) -> 12.77 | E14: =AVERAGE(E2,E26) -> 1.97 | K14: 1000 | L14: 10 | M14: 12 | N14: 11.92 | O14: 1.86 | Q14: 1100 | R14: 10 | S14: 12 | T14: 12.875 | U14: 2.01 | W14: 1200 | X14: 10 | Y14: 12 | Z14: 13.83 | AA14: 2.16 | AC14: 1300 | AD14: 10 | AE14: 12 | AF14: 14.725 | AG14: 2.305 | AI14: 1400 | AJ14: 10 | AK14: 12 | AL14: 15.62 | AM14: 2.45 | AO14: 1500 | AP14: 10 | AQ14: 12 | AR14: 16.515 | AS14: 2.6 | AU14: 1600 | AV14: 10 | AW14: 12 | AX14: 17.41 | AY14: 2.75
A15: 1100 | B15: 10 | C15: 2 | D15: =AVERAGE(D3,D27) -> 13.225 | E15: 2.1
A16: 1100 | B16: 10 | C16: 3 | D16: 13.225 | E16: 2.02
A17: 1100 | B17: 10 | C17: 4 | D17: 12.78 | E17: 1.885
A18: 1100 | B18: 10 | C18: 5 | D18: 12.34 | E18: 1.75
A19: 1100 | B19: 10 | C19: 6 | D19: 11.825 | E19: 1.62
A20: 1100 | B20: 10 | C20: 7 | D20: 10.17 | E20: 1.355
A21: 1100 | B21: 10 | C21: 8 | D21: 10.32 | E21: 1.39
A22: 1100 | B22: 10 | C22: 9 | D22: 10.56 | E22: 1.455
A23: 1100 | B23: 10 | C23: 10 | D23: 10.995 | E23: 1.56
A24: 1100 | B24: 10 | C24: 11 | D24: 11.055 | E24: 1.63
A25: 1100 | B25: 10 | C25: 12 | D25: 12.875 | E25: 2.01
A26: 1200 | B26: 10 | C26: 1 | D26: 13.49 | E26: 2.06
A27: 1200 | B27: 10 | C27: 2 | D27: 13.94 | E27: 2.19
A28: 1200 | B28: 10 | C28: 3 | D28: 13.96 | E28: 2.11
A29: 1200 | B29: 10 | C29: 4 | D29: 13.54 | E29: 1.98
A30: 1200 | B30: 10 | C30: 5 | D30: 13.08 | E30: 1.84
A31: 1200 | B31: 10 | C31: 6 | D31: 12.77 | E31: 1.74
A32: 1200 | B32: 10 | C32: 7 | D32: 10.87 | E32: 1.45
A33: 1200 | B33: 10 | C33: 8 | D33: 11.04 | E33: 1.49
A34: 1200 | B34: 10 | C34: 9 | D34: 11.3 | E34: 1.56
A35: 1200 | B35: 10 | C35: 10 | D35: 11.78 | E35: 1.67
A36: 1200 | B36: 10 | C36: 11 | D36: 11.19 | E36: 1.65
A37: 1200 | B37: 10 | C37: 12 | D37: 13.83 | E37: 2.16
A38: 1300 | B38: 10 | C38: 1 | D38: =AVERAGE(D26,D50) -> 14.185 | E38: =AVERAGE(E26,E50) -> 2.145
A39: 1300 | B39: 10 | C39: 2 | D39: =AVERAGE(D27,D51) -> 14.63 | E39: 2.275
A40: 1300 | B40: 10 | C40: 3 | D40: =AVERAGE(D28,D52) -> 14.68 | E40: 2.2
A41: 1300 | B41: 10 | C41: 4 | D41: =AVERAGE(D29,D53) -> 14.25 | E41: 2.065
A42: 1300 | B42: 10 | C42: 5 | D42: =AVERAGE(D30,D54) -> 13.79 | E42: 1.925
A43: 1300 | B43: 10 | C43: 6 | D43: =AVERAGE(D31,D55) -> 13.475 | E43: 1.825
A44: 1300 | B44: 10 | C44: 7 | D44: =AVERAGE(D32,D56) -> 11.555 | E44: 1.54
A45: 1300 | B45: 10 | C45: 8 | D45: =AVERAGE(D33,D57) -> 11.705 | E45: 1.58
A46: 1300 | B46: 10 | C46: 9 | D46: =AVERAGE(D34,D58) -> 12.01 | E46: 1.66
A47: 1300 | B47: 10 | C47: 10 | D47: =AVERAGE(D35,D59) -> 12.525 | E47: 1.78
A48: 1300 | B48: 10 | C48: 11 | D48: =AVERAGE(D36,D60) -> 12.695 | E48: 1.88
A49: 1300 | B49: 10 | C49: 12 | D49: =AVERAGE(D37,D61) -> 14.725 | E49: 2.305
A50: 1400 | B50: 10 | C50: 1 | D50: 14.88 | E50: 2.23
A51: 1400 | B51: 10 | C51: 2 | D51: 15.32 | E51: 2.36
A52: 1400 | B52: 10 | C52: 3 | D52: 15.4 | E52: 2.29
A53: 1400 | B53: 10 | C53: 4 | D53: 14.96 | E53: 2.15
A54: 1400 | B54: 10 | C54: 5 | D54: 14.5 | E54: 2.01
A55: 1400 | B55: 10 | C55: 6 | D55: 14.18 | E55: 1.91
A56: 1400 | B56: 10 | C56: 7 | D56: 12.24 | E56: 1.63
A57: 1400 | B57: 10 | C57: 8 | D57: 12.37 | E57: 1.67
A58: 1400 | B58: 10 | C58: 9 | D58: 12.72 | E58: 1.76
A59: 1400 | B59: 10 | C59: 10 | D59: 13.27 | E59: 1.89
A60: 1400 | B60: 10 | C60: 11 | D60: 14.2 | E60: 2.11
A61: 1400 | B61: 10 | C61: 12 | D61: 15.62 | E61: 2.45
A62: 1500 | B62: 10 | C62: 1 | D62: =AVERAGE(D50,D74) -> 15.56 | E62: =AVERAGE(E50,E74) -> 2.31
A63: 1500 | B63: 10 | C63: 2 | D63: =AVERAGE(D51,D75) -> 15.995 | E63: 2.44
A64: 1500 | B64: 10 | C64: 3 | D64: =AVERAGE(D52,D76) -> 16.11 | E64: 2.37
A65: 1500 | B65: 10 | C65: 4 | D65: =AVERAGE(D53,D77) -> 15.66 | E65: 2.22
A66: 1500 | B66: 10 | C66: 5 | D66: =AVERAGE(D54,D78) -> 15.245 | E66: 2.1
A67: 1500 | B67: 10 | C67: 6 | D67: =AVERAGE(D55,D79) -> 14.895 | E67: 1.995
A68: 1500 | B68: 10 | C68: 7 | D68: =AVERAGE(D56,D80) -> 12.915 | E68: 1.725
A69: 1500 | B69: 10 | C69: 8 | D69: =AVERAGE(D57,D81) -> 13.055 | E69: 1.77
A70: 1500 | B70: 10 | C70: 9 | D70: =AVERAGE(D58,D82) -> 12.75 | E70: 1.76
A71: 1500 | B71: 10 | C71: 10 | D71: =AVERAGE(D59,D83) -> 14.015 | E71: 2
A72: 1500 | B72: 10 | C72: 11 | D72: =AVERAGE(D60,D84) -> 15.01 | E72: 2.23
A73: 1500 | B73: 10 | C73: 12 | D73: =AVERAGE(D61,D85) -> 16.515 | E73: 2.6
A74: 1600 | B74: 10 | C74: 1 | D74: 16.24 | E74: 2.39
A75: 1600 | B75: 10 | C75: 2 | D75: 16.67 | E75: 2.52
A76: 1600 | B76: 10 | C76: 3 | D76: 16.82 | E76: 2.45
A77: 1600 | B77: 10 | C77: 4 | D77: 16.36 | E77: 2.29
A78: 1600 | B78: 10 | C78: 5 | D78: 15.99 | E78: 2.19
A79: 1600 | B79: 10 | C79: 6 | D79: 15.61 | E79: 2.08
A80: 1600 | B80: 10 | C80: 7 | D80: 13.59 | E80: 1.82
A81: 1600 | B81: 10 | C81: 8 | D81: 13.74 | E81: 1.87
A82: 1600 | B82: 10 | C82: 9 | D82: 12.78 | E82: 1.76
A83: 1600 | B83: 10 | C83: 10 | D83: 14.76 | E83: 2.11
A84: 1600 | B84: 10 | C84: 11 | D84: 15.82 | E84: 2.35
A85: 1600 | B85: 10 | C85: 12 | D85: 17.41 | E85: 2.75

Sheet Basis for calculations
A2: Daily DMI taken from DiLorenzo et al. (2013) unpublished. FEF intake data on weaned and lactating beef cows consuming bermudagrass hay
A3: Beef cow requirements obtained from: Hersom, M. 2017. Basic Nutrient Requirements of Beef Cows. University of Florida, IFAS, Florida Coop. Ext. Serv., Animal Science Dept., EDIS Publication AN190. http://edis.ifas.ufl.edu/an190
